{"text_format":"3","workbook":"xlsx","n_sheets":5,"sheets":["Bond Est - Streets","Bond Est - Utilities","Bond Est - Signals,Signs&Stripe","AC CALC","Inspection(ONSITE)"],"not_rendered":{"defined_names":7},"read":"whole","date_system":"1900"}

{"sheet":"Bond Est - Streets","index":0,"n_rows":68,"n_cols":16,"rows_kept":68,"merged":[[0,0,0,5],[1,0,1,5],[2,0,2,5],[4,0,4,3],[4,4,4,5],[6,0,6,1],[6,2,6,4],[7,2,7,4],[8,0,8,1],[8,2,8,4],[9,2,9,4],[10,0,10,1],[10,2,10,4],[11,2,11,4],[13,0,13,5],[14,0,14,5],[15,0,15,5],[16,0,16,5],[18,0,18,5],[19,0,19,5],[20,0,20,5],[21,0,21,5],[42,10,42,15]]}
["CITY OF CARSON"]
["DEPARTMENT OF PUBLIC WORKS"]
["ENGINEERING DIVISION"]
[]
["TOTAL ESTIMATE",{"$nulls":3},{"$f":"F65+('Bond Est - Utilities'!F53)+('Bond Est - Signals,Signs&Stripe'!F53)","v":0}]
[]
[]
[null,"DEVELOPMENT/PROJECT NAME","SITE ADDRESS",null,null,"Tract/Parcel/CUP/DOR"]
[null,null,"   "]
[null,"DEVELOPER/ENGINEER COMPANY","ADDRESS",null,null,"PHONE NO"]
[]
[null,"CONTACT PERSON","CITY STATE ZIP",null,null,"FAX"]
[]
["The bond amount is an estimated cost to complete the improvements as shown on the approved plans (on site and off site construction);"]
[" including, but not limited to: protected devices, corrective work to remove and eliminate engineering and geological hazards,"]
["costs of removing and disposing of stock-piled excavation and administrative costs incurred by the City.  The bond is required "]
["to assure that the work can be completed by the City, whenever the owner/developer is unable to complete the work"]
[]
["These unit prices are a composite of prices incurred by the City on public contracts.  The unit prices are subject to revision to "]
["reflect current cost data. The owner/developer may receive bids that are more or less than the bond estimate;"]
["however the bond amount will not be changed."]
["BOND ESTIMATE (Street)"]
[null,null,"Quantity","Unit","Unit Price","Item Cost"]
[null,"Street Improvements",{"$nulls":4},"updated unit cost","REFERENCE"]
[1,"Sawcut",null,"L.F.",{"v":2.5,"d":"$2.50"},{"$f":"IF(C25=\"\",\"\",C25*E25)","v":""},"2008-04-01","Proj 843"]
[2,"Unclassified Excavation",null,"C.Y.",{"v":80,"d":"$80.00"},"","2008-04-01","Proj 843"]
[3,"Reset Survey Monuments",null,"EA.",{"v":600,"d":"$600.00"},""]
[4,"Crushed Aggregate Base (C.A.B) or Slurry",null,"CY",{"v":95,"d":"$95.00"},"","2009-05-19"]
[5,"A.C. Berm (6-inch)",null,"L.F.",{"v":12,"d":"$12.00"},""]
[6,"Curb Only",null,"L.F.",{"v":20,"d":"$20.00"},""]
[7,"Remove and Replace Curb & Gutter",null,"L.F.",{"v":50,"d":"$50.00"},"","2007-02-01"]
[8,"Sidewalk (4-inch PCC)",null,"S.F.",{"v":10,"d":"$10.00"},"","2007-02-01"]
[9,"Parkway Drains",null,"EA.",{"v":2500,"d":"$2,500.00"},"","2007-02-01"]
[10,"Driveway (Residential)",null,"S.F.",{"v":8,"d":"$8.00"},""]
[11,"Driveway (Commerical)",null,"S.F.",{"v":12,"d":"$12.00"},""]
[12,"Hcapp Curb Ramps",null,"EA.",{"v":3800,"d":"$3,800.00"},"","2007-02-01"]
[13,"Street Lights",null,"EA.",{"v":15000,"d":"$15,000.00"},"","2009-06-01","Gilbert M"]
[14,"Street Light (RELOCATION)",null,"EA.",{"v":10000,"d":"$10,000.00"},""]
[15,"Street Light (Protect-In-Place)",null,"EA.",{"v":7500,"d":"$7,500.00"}]
[16,"Underground (SCE) [24\"x24\"] with 36\" cover",null,"L.F.",{"v":500,"d":"$500.00"},""]
[17,"Conduit (6x 5\")",null,"L.F.",{"v":12,"d":"$12.00"},""]
[18,"Skin Patch",null,"S.F.",{"v":3,"d":"$3.00"},""]
[19,"Cold Planing",null,"S.F.",{"v":0.25,"d":"$0.25"},"","2008-04-01","Proj 843",null,null,"ASPHALT CALCULATIONS"]
[20,"Slurry Type II (Conventional)/Rubberized",null,"S.F.",{"v":0.45,"d":"$0.45"},"",{"$nulls":4},145,"lbs per Cu.Ft of Asphalt",null,null,"2000 lbs per Ton"]
[21,"Asphalt",null,"TON",{"v":100,"d":"$100.00"},"",{"$nulls":4},"Coverage Area","AC Thickness","Volume","Volume","AC Weight","AC Tonage"]
[22,"Cross Gutter",null,"S.F.",{"v":18,"d":"$18.00"},"","2007-02-01",{"$nulls":3},"sq.ft","in","cu.ft","cu.yds","lbs","tons"]
[23,"Alley (PCC) or Concrete Pavement",null,"C.Y.",{"v":800,"d":"$800.00"},"",{"$nulls":4},3500,6,{"$f":"K47*(L47/12)","v":{"v":1750,"d":"1750.00"}},{"$f":"M47/27","v":{"v":64.81481481481481,"d":"64.81"}},{"$f":"M47*K44","v":253750},{"$f":"O47/2000","v":{"v":126.875,"d":"126.88"}}]
[24,"Speed Humps",null,"EA.",{"v":2000,"d":"$2,000.00"},""]
[25,"Bus Pad (concrete) - 9\" thick",null,"S.F.",{"v":15,"d":"$15.00"},""]
[26,"Adjust Pullbox/Water Meter to Grade",null,"EA.",{"v":300,"d":"$300.00"},"","2008-04-01","Proj 843"]
[27,"Adjust SS/SD Manhole",null,"EA.",{"v":500,"d":"$500.00"},""]
[28,"Landscaped Median (7-ft half width; 14-ft full)",null,"SQ",{"v":20,"d":"$20.00"},""]
[29,"Topsoil (Class A)",null,"C.Y.",{"v":28,"d":"$28.00"},""]
[30,"Sod",null,"S.F.",{"v":5,"d":"$5.00"},""]
[31,"Mulch",null,"C.Y.",{"v":50,"d":"$50.00"},""]
[32,"Plant (1 gallon)",null,"EA.",{"v":8,"d":"$8.00"},""]
[33,"Plant (5 gallon)",null,"EA.",{"v":20,"d":"$20.00"},""]
[34,"Street Trees (24-inch box)",null,"EA.",{"v":300,"d":"$300.00"},""]
[35,"Street Trees (36-inch box)",null,"EA.",{"v":900,"d":"$900.00"},""]
[36,"Irrigation System ",null,"S.F.",{"v":5,"d":"$5.00"},""]
[37,"Moisture Barrier",null,"L.F.",{"v":5,"d":"$5.00"},""]
[38,"Maintenance Establishment Period",null,"DAY",{"v":40,"d":"$40.00"},"","2008-04-01","Proj 843"]
[39,"Lane Closure (Traffic Control)",null,"DAY",{"v":500,"d":"$500.00"},"","2008-04-01","Fee Schedule"]
[null,"TOTAL CASH DEPOSIT OR BOND AMOUNT (Streets)",{"$nulls":3},{"$f":"SUM(F25:F63)","v":0}]
[{"$nulls":4},"rounded up",{"$f":"ROUNDUP(F64,0)","v":0}]
[{"$nulls":4},"GO TO --->","Utility Estimate"]
[{"$nulls":5},"Signs/Stripe Est"]
[{"$nulls":5},"Inspection Estimate"]

{"sheet":"Bond Est - Utilities","index":1,"n_rows":56,"n_cols":6,"rows_kept":56,"merged":[[0,0,0,5],[1,0,1,5],[2,0,2,5],[4,0,4,1],[4,2,4,4],[5,2,5,4],[6,0,6,1],[6,2,6,4],[7,2,7,4],[8,0,8,1],[8,2,8,4],[9,2,9,4],[11,0,11,5],[12,0,12,5],[13,0,13,5],[14,0,14,5],[16,0,16,5],[17,0,17,5],[18,0,18,5],[19,0,19,5],[54,2,54,3]]}
["CITY OF CARSON"]
["DEPARTMENT OF PUBLIC WORKS"]
["ENGINEERING DIVISION"]
[]
[{"$f":"IF(('Bond Est - Streets'!A7:B7)=\"\",\"\",'Bond Est - Streets'!A7:B7)","v":""},null,{"$f":"IF(('Bond Est - Streets'!C7:E7)=\"\",\"\",'Bond Est - Streets'!C7:E7)","v":""},null,null,{"$f":"IF(('Bond Est - Streets'!F7)=\"\",\"\",'Bond Est - Streets'!F7)","v":""}]
[null,"DEVELOPMENT/PROJECT NAME","SITE ADDRESS",null,null,"Tract/Parcel/CUP/DOR"]
[{"$f":"IF(('Bond Est - Streets'!A9:B9)=\"\",\"\",'Bond Est - Streets'!A9:B9)","v":""},null,{"$f":"IF(('Bond Est - Streets'!C9:E9)=\"\",\"\",'Bond Est - Streets'!C9:E9)","v":"   "},null,null,{"$f":"IF(('Bond Est - Streets'!F9)=\"\",\"\",'Bond Est - Streets'!F9)","v":""}]
[null,"DEVELOPER/ENGINEER COMPANY","ADDRESS",null,null,"PHONE NO"]
[{"$f":"IF(('Bond Est - Streets'!A11:B11)=\"\",\"\",'Bond Est - Streets'!A11:B11)","v":""},null,{"$f":"IF(('Bond Est - Streets'!C11:E11)=\"\",\"\",'Bond Est - Streets'!C11:E11)","v":""},null,null,{"$f":"IF(('Bond Est - Streets'!F11)=\"\",\"\",'Bond Est - Streets'!F11)","v":""}]
[null,"CONTACT PERSON","CITY STATE ZIP",null,null,"FAX"]
[]
["The bond amount is an estimated cost to complete the improvements as shown on the approved plans (on site and off site construction);"]
[" including, but not limited to: protected devices, corrective work to remove and eliminate engineering and geological hazards,"]
["costs of removing and disposing of stock-piled excavation and administrative costs incurred by the City.  The bond is required "]
["to assure that the work can be completed by the City, whenever the owner/developer is unable to complete the work"]
[]
["These unit prices are a composite of prices incurred by the City on public contracts.  The unit prices are subject to revision to "]
["reflect current cost data. The owner/developer may receive bids that are more or less than the bond estimate;"]
["however the bond amount will not be changed."]
["BOND ESTIMATE (Utilities)"]
[null,null,"Quantity","Unit","Unit Price","Item Cost"]
[null,"Sewer System Improvements"]
[null,"8\" Dia. VCP",null,"L.F.",{"v":65,"d":"$65"},{"$f":"IF(C23=\"\",\"\",C23*E23)","v":""}]
[null,"> 8\" Dia. VCP",null,"L.F.",{"v":85,"d":"$85"},{"$f":"IF(C24=\"\",\"\",C24*E24)","v":""}]
[null,"6\" Dia. VCP Laterals",null,"EA.",{"v":1500,"d":"$1,500"},{"$f":"IF(C25=\"\",\"\",C25*E25)","v":""}]
[null,"Manholes",null,"EA.",{"v":2000,"d":"$2,000"},{"$f":"IF(C26=\"\",\"\",C26*E26)","v":""}]
[]
[null,"Water System Improvements"]
[null,"6\" Main (includes inline fixtures)",null,"L.F.",{"v":100,"d":"$100"},{"$f":"IF(C29=\"\",\"\",C29*E29)","v":""}]
[null,"8\" Main (includes inline fixtures)",null,"L.F.",{"v":125,"d":"$125"},""]
[null,"10\" Main (includes inline fixtures)",null,"L.F.",{"v":138,"d":"$138"},""]
[null,"12\" Main (includes inline fixtures)",null,"L.F.",{"v":150,"d":"$150"},""]
[null,"Services 1\" or less",null,"EA.",{"v":1000,"d":"$1,000"},""]
[null,"Services 1.5\" - 2\"",null,"EA.",{"v":1250,"d":"$1,250"},""]
[null,"Services > 2\"",null,"EA.",0,""]
[null,"Fire Hydrant",null,"EA.",{"v":4500,"d":"$4,500"},""]
[]
[null,"Storm Drain Improvements"]
[null,"18\" Lines",null,"L.F.",{"v":80,"d":"$80"},{"$f":"IF(C39=\"\",\"\",C39*E39)","v":""}]
[null,"21\" Lines",null,"L.F.",{"v":84,"d":"$84"},""]
[null,"24\" Lines",null,"L.F.",{"v":88,"d":"$88"},""]
[null,"27\" Lines",null,"L.F.",{"v":92,"d":"$92"},""]
[null,"33\" Lines",null,"L.F.",{"v":102,"d":"$102"},""]
[null,"36\" Lines",null,"L.F.",{"v":107,"d":"$107"},""]
[null,"39\" Lines",null,"L.F.",{"v":112,"d":"$112"},""]
[null,"42\" Lines",null,"L.F.",{"v":119,"d":"$119"},""]
[null,"48\" Lines",null,"L.F.",{"v":130,"d":"$130"},""]
[null,"54\" Lines",null,"L.F.",{"v":138,"d":"$138"},""]
[null,"60\" Lines",null,"L.F.",{"v":152,"d":"$152"},""]
[null,"Above 60\" Lines",null,"L.F.",{"v":190,"d":"$190"},""]
[null,"Structures (M.H., J.S., C.B.)",null,"EA.",{"v":2500,"d":"$2,500"},""]
[]
[null,"TOTAL CASH DEPOSIT OR BOND AMOUNT (Utilities)",{"$nulls":3},{"$f":"SUM(F22:F51)","v":0}]
[{"$nulls":4},"rounded up",{"$f":"ROUNDUP(F53,0)","v":0}]
[null,null,"Street Estimate",null,"<--GO TO--->","Signs/Stripe Est"]
[{"$nulls":5},"Inspection Estimate"]

{"sheet":"Bond Est - Signals,Signs&Stripe","index":2,"n_rows":55,"n_cols":8,"rows_kept":55,"merged":[[0,0,0,5],[1,0,1,5],[2,0,2,5],[4,0,4,1],[4,2,4,4],[5,2,5,4],[6,0,6,1],[6,2,6,4],[7,2,7,4],[8,0,8,1],[8,2,8,4],[9,2,9,4],[11,0,11,5],[12,0,12,5],[13,0,13,5],[14,0,14,5],[16,0,16,5],[17,0,17,5],[18,0,18,5],[19,0,19,5],[54,2,54,3]]}
["CITY OF CARSON"]
["DEPARTMENT OF PUBLIC WORKS"]
["ENGINEERING DIVISION"]
[]
[{"$f":"IF(('Bond Est - Streets'!A7:B7)=\"\",\"\",'Bond Est - Streets'!A7:B7)","v":""},null,{"$f":"IF(('Bond Est - Streets'!C7:E7)=\"\",\"\",'Bond Est - Streets'!C7:E7)","v":""},null,null,{"$f":"IF(('Bond Est - Streets'!F7)=\"\",\"\",'Bond Est - Streets'!F7)","v":""}]
[null,"DEVELOPMENT/PROJECT NAME","SITE ADDRESS",null,null,"Tract/Parcel/CUP/DOR"]
[{"$f":"IF(('Bond Est - Streets'!A9:B9)=\"\",\"\",'Bond Est - Streets'!A9:B9)","v":""},null,{"$f":"IF(('Bond Est - Streets'!C9:E9)=\"\",\"\",'Bond Est - Streets'!C9:E9)","v":"   "},null,null,{"$f":"IF(('Bond Est - Streets'!F9)=\"\",\"\",'Bond Est - Streets'!F9)","v":""}]
[null,"DEVELOPER/ENGINEER COMPANY","ADDRESS",null,null,"PHONE NO"]
[{"$f":"IF(('Bond Est - Streets'!A11:B11)=\"\",\"\",'Bond Est - Streets'!A11:B11)","v":""},null,{"$f":"IF(('Bond Est - Streets'!C11:E11)=\"\",\"\",'Bond Est - Streets'!C11:E11)","v":""},null,null,{"$f":"IF(('Bond Est - Streets'!F11)=\"\",\"\",'Bond Est - Streets'!F11)","v":""}]
[null,"CONTACT PERSON","CITY STATE ZIP",null,null,"FAX"]
[]
["The bond amount is an estimated cost to complete the improvements as shown on the approved plans (on site and off site construction);"]
[" including, but not limited to: protected devices, corrective work to remove and eliminate engineering and geological hazards,"]
["costs of removing and disposing of stock-piled excavation and administrative costs incurred by the City.  The bond is required "]
["to assure that the work can be completed by the City, whenever the owner/developer is unable to complete the work"]
[]
["These unit prices are a composite of prices incurred by the City on public contracts.  The unit prices are subject to revision to "]
["reflect current cost data. The owner/developer may receive bids that are more or less than the bond estimate;"]
["however the bond amount will not be changed."]
["BOND ESTIMATE (Signs/Stripes)"]
[null,null,"Quantity","Unit","Unit Price","Item Cost"]
[null,"SIGNS & STRIPINGS"]
[1,"8\" solid white lane line",null,"LF",{"v":0.17,"d":"$0.17"},{"$f":"E23*C23","v":0}]
[2,"Adjust sign to grade",null,"EA",{"v":350,"d":"$350.00"},{"$f":"E24*C24","v":0},"updated unit cost","REFERENCE"]
[3,"Adjust traffic signal base to grade",null,"EA",{"v":4500,"d":"$4,500.00"},0]
[4,"Adjust traffic signal pull box to grade",null,"EA",{"v":300,"d":"$300.00"},0]
[5,"Blue marker",null,"EA",{"v":5,"d":"$5.00"},0]
[6,"Double yellow centerline (Std. # 453-A)",null,"LF",{"v":0.25,"d":"$0.25"},0]
[7,"Install traffic signal loops",null,"EA",{"v":250,"d":"$250.00"},0,"2008-04-01","Proj 843"]
[8,"Relocate street light (Std. # L 119-1)",null,"EA",{"v":300,"d":"$300.00"},0]
[9,"12\" solid white crosswalk/stop bar (thermo)",null,"LF",{"v":1.64,"d":"$1.64"},0]
[10,"12\" solid white crosswalk/stop bar (thermo)",null,"LF",{"v":1.7,"d":"$1.70"},0]
[11,"12\" yellow crosswalk (thermoplastic)",null,"LF",{"v":1.5,"d":"$1.50"},0]
[12,"4\" broken white lane line",null,"LF",{"v":0.13,"d":"$0.13"},0]
[13,"4\" broken yellow lane line (Std. # 450-A)",null,"LF",{"v":0.34,"d":"$0.34"},0]
[14,"4\" solid white lane line (Std. # 452-B)",null,"LF",{"v":0.16,"d":"$0.16"},0]
[15,"4\" solid yellow lane line (Std. # 460)",null,"LF",{"v":0.61,"d":"$0.61"},0]
[16,"8' letter legend (thermoplastic)",null,"EA",{"v":30,"d":"$30.00"},0]
[17,"8' turn arrow (thermoplastic)",null,"EA",{"v":50,"d":"$50.00"},0]
[18,"8' turn arrow/lane drop (thermoplastic)",null,"EA",{"v":50,"d":"$50.00"},0]
[19,"8' yellow/white letter legend (thermo)",null,"EA",{"v":26,"d":"$26.00"},0]
[20,"Two-way left turn lane",null,"LF",{"v":0.15,"d":"$0.15"},0]
[21,"Type \"A\" marker",null,"EA",{"v":1.5,"d":"$1.50"},0]
[22,"Type \"AY\" marker",null,"EA",{"v":1.5,"d":"$1.50"},0]
[23,"Type \"C\" marker",null,"EA",{"v":3.1,"d":"$3.10"},0]
[24,"Type \"C\" marker",null,"EA",{"v":3,"d":"$3.00"},0]
[25,"Type \"D\" marker",null,"EA",{"v":2.5,"d":"$2.50"},0]
[26,"Type \"G\" marker",null,"EA",{"v":2.5,"d":"$2.50"},0]
[27,"Two-Way Left Turn Lane Pavement Markers",null,"LF",{"v":3,"d":"$3.00"},0]
[28,"Laneline Pavement Markers",null,"LF",{"v":2,"d":"$2.00"},0]
[29,"Traffic Loops",null,"EA",{"v":500,"d":"$500.00"},0,"2009-01-14","Richard Garland"]
[30,"Traffic Signal",null,"EA",{"v":50000,"d":"$50,000.00"},0,"2009-01-14","Richard Garland"]
[null,"TOTAL CASH DEPOSIT OR BOND AMOUNT (Signal/Signs/Stripes)",{"$nulls":3},{"$f":"SUM(F23:F52)","v":0}]
[{"$nulls":4},"rounded up",{"$f":"ROUNDUP(F53,0)","v":0}]
[null,null,"Utility Estimate",null,"<--GO TO--->","Inspection Estimate"]

{"sheet":"AC CALC","index":3,"n_rows":7,"n_cols":8,"rows_kept":7,"merged":[[2,2,2,7]]}
["BACK"]
[]
[null,null,"ASPHALT CALCULATIONS"]
[null,null,145,"lbs per Cu.Ft of Asphalt",null,null,"2000 lbs per Ton"]
[null,null,"Coverage Area","AC Thickness","Volume","Volume","AC Weight","AC Tonage"]
[null,null,"sq.ft","in","cu.ft","cu.yds","lbs","tons"]
[{"$nulls":4},{"$f":"C7*(D7/12)","v":{"v":0,"d":"0.00"}},{"$f":"E7/27","v":{"v":0,"d":"0.00"}},{"$f":"E7*C4","v":0},{"$f":"G7/2000","v":{"v":0,"d":"0.00"}}]

{"sheet":"Inspection(ONSITE)","index":4,"n_rows":31,"n_cols":7,"rows_kept":31,"merged":[[0,0,0,6],[1,0,1,6],[2,0,2,6],[3,0,3,6],[5,0,5,2],[6,0,6,1],[6,5,6,6],[7,0,7,1],[8,0,8,1],[9,0,9,1],[11,0,12,0],[11,2,11,3],[11,6,12,6],[12,2,12,3],[13,6,16,6],[17,6,21,6],[22,0,22,2],[23,0,23,2],[24,0,24,2],[25,0,26,6],[28,2,28,4],[30,0,30,1],[31,0,31,6]]}
["CITY OF CARSON"]
["Development Services Group - Engineering Division"]
["ON-SITE IMPROVEMENTS"]
["INSPECTION FEE ESTIMATE"]
[]
[]
["Site Address",{"$nulls":4},"Tract/Parcel/CUP/DOR"]
[]
["Contact Person ",{"$nulls":3},"Phone",null,"Fax"]
["(Owner/Engineer/Contractor)"]
[]
["#","WORK","QTY",null,"DURATION (days)","INSPECTION HRS","NOTE:"]
[null,"TYPE","(Applicant to provide)",null,"(Applicant to provide)","(City Inspector's Estimate)"]
[1,"SUB BASE",null,"CY",null,null,"Inspection hours to be estimated by Public Works inspector after duration of work has been provided by Applicant"]
[2,"BASE",null,"TON"]
[3,"TRENCH BACKFILL",null,"CY"]
[4,"COLD MILL",null,"SF"]
[5,"AC BERM/CURB",null,"LF",null,null,"* Should actual inspection hours exceed the total estimated inspection hours shown above, the Applicant will be invoiced by the City.  Permit will not be finaled until invoice is paid"]
[6,"PCC CURB/GUTTERS",null,"LF"]
[7,"PCC GUTTERS",null,"LF"]
[8,"ASPHALT PAVEMENT",null,"TON"]
[9,"CONCRETE PAVEMENT",null,"CY"]
["*TOTAL",{"$nulls":4},{"$f":"SUM(F14:F22)&\" @$75/hr\"","v":"0 @$75/hr"},{"$f":"(SUM(F14:F22))*75","v":0}]
["Permit Issuance Fee",{"$nulls":5},{"v":55,"d":"$55.00"}]
["TOTAL PERMIT FEE",{"$nulls":5},{"$f":"IF(G23=\"\",\"\",G23+G24)","v":{"v":55,"d":"$55.00"}}]
[]
[]
[]
[null,null,"Applicant's Signature"]
[]
["COMMENTS: (if necessary)"]